bitfinex/quotes_SOLUSD_20240908
["timestamp","ask_amount","ask_price","bid_price","bid_amount"]
[1725782611458,45.0,129.9,129.85,9.57753888]
[1725782611661,45.0,129.9,129.86,1.54393419]
[1725782611864,45.0,129.9,129.87,9.57753888]
[1725782612253,45.0,129.9,129.87,11.12144674]
[1725782612459,45.0,129.9,129.87,9.57753888]
[1725782614870,15.8029,129.95,129.89,9.57753888]
[1725782615065,15.8029,129.95,129.85,18.787]
[1725782615066,15.8029,129.95,129.91,9.57753888]
[1725782616642,15.7777,129.98,129.91,9.57753888]
[1725782617671,45.0,129.97,129.91,9.57753888]
[1725782617969,77.81363913,129.97,129.9,20.0]
[1725782618174,9.64363913,129.96,129.9,20.0]
[1725782618341,45.0,129.95,129.88,20.0]
[1725782620874,45.0,129.96,129.88,20.0]
[1725782621055,45.0,129.96,129.89,9.57753888]
[1725782621257,15.7777,129.98,129.89,9.57753888]
[1725782621258,45.0,129.97,129.89,9.57753888]
[1725782621447,45.0,129.97,129.9,20.0]
[1725782621648,15.7777,129.98,129.9,20.0]
[1725782622156,23.17,129.97,129.87,9.57753888]
[1725782622343,45.4194,129.96,129.87,9.57753888]
[1725782622544,45.4194,129.96,129.85,18.787]
[1725782622743,77.81363913,129.95,129.85,9.57753888]
[1725782624550,77.81363913,129.95,129.86,20.0]
[1725782625145,22.30383568,129.94,129.86,20.0]
[1725782625356,45.0,129.93,129.86,20.0]
[1725782625769,45.0,129.94,129.86,20.0]
[1725782627264,68.17,129.94,129.86,20.0]
[1725782627466,6.6587,129.92,129.82,28.36453888]
[1725782627647,45.0,129.91,129.82,28.36453888]
[1725782628047,45.0,129.91,129.82,18.787]
[1725782628849,45.0,129.91,129.83,20.0]
[1725782629452,45.0,129.91,129.83,29.57753888]
[1725782630057,45.0,129.91,129.85,9.57753888]
[1725782640267,45.0,129.91,129.86,20.0]
[1725782640686,45.0,129.92,129.86,20.0]
[1725782651883,45.0,129.92,129.87,9.57753888]
[1725782652085,45.0,129.92,129.88,20.0]
[1725782652389,45.0,129.92,129.88,29.57753888]
[1725782652766,15.4457,129.97,129.88,29.57753888]
[1725782654179,25.08933913,129.97,129.88,29.57753888]
[1725782655074,28.03558294,129.97,129.88,29.57753888]
[1725782655278,45.0,129.96,129.88,29.57753888]
[1725782659179,45.0,129.96,129.88,20.0]
[1725782659388,45.0,129.96,129.87,29.57753888]
[1725782659389,77.81363913,129.96,129.87,29.57753888]
[1725782659884,77.81363913,129.96,129.87,20.0]
[1725782660202,32.81363913,129.95,129.87,20.0]
[1725782660380,45.0,129.94,129.87,20.0]
[1725782666981,77.81363913,129.94,129.86,18.9285]
[1725782668490,77.81363913,129.94,129.86,12.6628]
[1725782668803,45.2346,129.93,129.83,28.88393888]
[1725782668987,45.0,129.92,129.84,20.0]
[1725782673311,47.92993396,129.92,129.84,20.0]
[1725782674411,57.57357309,129.92,129.84,20.0]
[1725782674789,16.3704,129.89,129.8,0.8794738]
[1725782675093,6.1518,129.86,129.8,0.8794738]
[1725782675316,23.17,129.84,129.8,0.8794738]
[1725782675522,35.07452705,129.84,129.8,0.8794738]
[1725782675687,45.0,129.83,129.8,0.8794738]
[1725782677802,56.90452705,129.83,129.8,0.8794738]
[1725782681093,45.0,129.83,129.8,0.8794738]
[1725782683917,56.90452705,129.83,129.8,0.8794738]
[1725782685903,11.90452705,129.82,129.8,0.8794738]
[1725782686102,45.0,129.81,129.8,0.8794738]
[1725782698315,56.90452705,129.81,129.8,0.8794738]
[1725782700318,15.304,129.82,129.8,0.8794738]
[1725782700538,11.90452705,129.84,129.8,0.8794738]
[1725782701906,45.0,129.83,129.8,0.8794738]
[1725782702132,56.90452705,129.83,129.8,0.8794738]
[1725782703914,11.90452705,129.83,129.8,0.8794738]
[1725782705340,45.0,129.82,129.8,0.8794738]
[1725782724352,56.90452705,129.82,129.8,0.8794738]
[1725782728343,59.84070782,129.82,129.8,0.8794738]
[1725782730551,11.90452705,129.81,129.8,0.8794738]
[1725782730759,56.90452705,129.81,129.8,0.8794738]
[1725782735758,72.61932705,129.81,129.8,0.8794738]
[1725782736062,72.61932705,129.81,129.71,18.9236]
[1725782736063,72.61932705,129.81,129.72,20.0]
[1725782736262,45.0,129.8,129.72,20.0]
[1725782736447,11.90452705,129.79,129.72,20.0]
[1725782736764,45.0,129.78,129.72,20.0]
[1725782738345,45.0,129.78,129.73,9.57753888]
[1725782739562,15.7148,129.81,129.74,20.0]
[1725782739943,27.61932705,129.81,129.74,20.0]
[1725782740159,11.90452705,129.8,129.74,20.0]
[1725782740767,15.7148,129.78,129.68,18.8043]
[1725782741062,15.7148,129.78,129.69,9.57753888]
[1725782741572,26.96807757,129.78,129.69,9.57753888]
[1725782741956,26.96807757,129.78,129.71,9.57753888]
[1725782742264,45.0,129.77,129.71,9.57753888]
[1725782746191,9.63659075,129.8,129.72,20.0]
[1725782747652,21.9691,129.81,129.73,22.24033888]
[1725782749167,45.0,129.8,129.73,22.24033888]
[1725782749564,45.0,129.8,129.74,20.0]
[1725782753374,45.0,129.8,129.73,28.82803888]
[1725782753552,45.0,129.8,129.74,20.0]
[1725782760853,45.0,129.8,129.73,19.2505]
[1725782761054,45.0,129.8,129.7,19.2091]
[1725782761055,56.25327757,129.8,129.7,19.2091]
[1725782761267,56.25327757,129.8,129.71,20.0]
[1725782761268,11.25327757,129.79,129.71,20.0]
[1725782761560,45.0,129.78,129.71,20.0]
[1725782762453,45.0,129.78,129.72,9.57753888]
[1725782762654,45.0,129.78,129.73,20.0]
[1725782763460,45.0,129.78,129.7,28.78663888]
[1725782763667,45.0,129.78,129.71,20.0]
[1725782766578,45.0,129.79,129.71,20.0]
[1725782771665,48.02713314,129.79,129.71,20.0]
[1725782772870,15.3159,129.81,129.72,9.57753888]
[1725782773072,15.3159,129.81,129.73,20.0]
[1725782773273,15.3159,129.81,129.72,9.57753888]
[1725782773477,15.3159,129.81,129.73,20.0]
[1725782774166,45.0,129.8,129.73,20.0]
[1725782774581,15.3159,129.81,129.74,9.57753888]
[1725782775464,15.3159,129.81,129.75,20.0]
[1725782775670,14.24969841,129.82,129.75,20.0]
[1725782775890,11.25327757,129.82,129.76,9.57753888]
[1725782777581,45.0,129.81,129.76,9.57753888]
[1725782779085,11.25327757,129.85,129.78,9.57753888]
[1725782780379,45.0,129.84,129.78,9.57753888]
[1725782782886,45.0,129.84,129.77,9.57753888]
[1725782783184,45.0,129.84,129.78,20.0]
[1725782783503,19.37067772,129.87,129.79,28.26183888]
[1725782784893,45.0,129.86,129.79,28.26183888]
[1725782785180,45.0,129.86,129.79,18.6843]
[1725782785381,56.25327757,129.86,129.79,18.6843]
[1725782788888,56.25327757,129.86,129.78,20.0]
[1725782788889,11.25327757,129.85,129.78,20.0]
[1725782789191,45.0,129.84,129.77,20.0]
[1725782790476,15.2252,129.83,129.73,19.1326]
[1725782790673,45.0,129.82,129.73,19.1326]
[1725782792078,45.0,129.82,129.74,20.0]
[1725782795079,32.94767757,129.81,129.7,28.71013888]
[1725782795277,45.0,129.8,129.7,28.71013888]
[1725782797409,45.0,129.8,129.71,20.0]
[1725782801484,56.25327757,129.8,129.71,20.0]
[1725782804402,21.6944,129.81,129.72,9.57753888]
[1725782804609,21.6944,129.81,129.74,9.57753888]
[1725782805705,45.0,129.8,129.74,9.57753888]
[1725782808594,21.6944,129.81,129.75,20.0]
[1725782809799,45.0,129.8,129.75,20.0]
[1725782821964,45.0,129.8,129.73,20.0]
[1725782822440,56.25327757,129.8,129.71,29.57753888]
[1725782822947,56.25327757,129.8,129.7,19.1326]
[1725782823243,56.25327757,129.8,129.7,28.71013888]
[1725782824119,56.25327757,129.8,129.71,20.0]
[1725782824544,45.0,129.8,129.71,20.0]
[1725782824940,45.0,129.8,129.72,9.57753888]
[1725782827230,47.91591644,129.8,129.72,9.57753888]
[1725782828551,59.16919401,129.8,129.72,9.57753888]
[1725782829528,11.25327757,129.79,129.71,20.0]
[1725782829827,45.0,129.78,129.71,20.0]
[1725782830347,32.59617757,129.77,129.71,20.0]
[1725782830540,45.0,129.76,129.67,30.45701268]
[1725782831349,45.0,129.76,129.67,20.8794738]
[1725782831550,45.0,129.76,129.67,30.45701268]
[1725782832054,45.0,129.76,129.67,10.45701268]
[1725782832252,56.25327757,129.76,129.67,0.8794738]
[1725782832455,15.2106,129.75,129.67,0.8794738]
[1725782832629,45.0,129.74,129.67,0.8794738]
[1725782833360,45.0,129.74,129.67,20.8794738]
[1725782838332,47.96938324,129.74,129.67,20.8794738]
[1725782839957,6.1323,129.73,129.67,0.8794738]
[1725782840164,45.0,129.72,129.67,0.8794738]
[1725782841062,15.2106,129.71,129.67,0.8794738]
[1725782841274,45.0,129.7,129.67,0.8794738]
[1725782848365,45.0,129.7,129.59,9.57753888]
[1725782848366,33.86357757,129.69,129.59,9.57753888]
[1725782848752,45.0,129.68,129.59,9.57753888]
[1725782849052,16.2159,129.73,129.66,9.57753888]
[1725782849261,16.2159,129.73,129.68,9.57753888]
[1725782850672,16.2159,129.73,129.66,9.57753888]
[1725782851171,16.2159,129.73,129.65,9.57753888]
[1725782851860,45.0,129.72,129.65,9.57753888]
[1725782862181,22.3644,129.71,129.6,6.5513]
[1725782862373,45.0,129.7,129.62,9.57753888]
[1725782863180,45.0,129.7,129.61,9.57753888]
[1725782863181,16.2691,129.69,129.61,9.57753888]
[1725782863388,16.2691,129.69,129.58,12.6628]
[1725782863389,45.0,129.68,129.58,12.6628]
[1725782863568,45.0,129.68,129.61,9.57753888]
[1725782865480,6.0953,129.71,129.58,12.6628]
[1725782865682,6.0953,129.71,129.59,20.0]
[1725782865917,6.6324,129.69,129.59,20.0]
[1725782866064,22.4021,129.69,129.6,9.57753888]
[1725782866479,15.7697,129.68,129.58,20.0]
[1725782866694,15.7697,129.68,129.59,9.57753888]
[1725782866989,45.0,129.67,129.6,20.0]
[1725782867193,45.0,129.67,129.59,9.57753888]
[1725782868473,45.0,129.67,129.6,20.0]
[1725782869092,45.0,129.67,129.61,9.57753888]
[1725782869384,45.0,129.67,129.62,20.0]
[1725782869789,15.7697,129.68,129.62,20.0]
[1725782869990,15.7697,129.68,129.63,9.57753888]
[1725782870191,15.7697,129.68,129.65,9.57753888]
[1725782870489,15.7697,129.68,129.66,20.0]
[1725782870865,15.7697,129.71,129.67,9.57753888]
[1725782871064,15.7697,129.71,129.68,20.0]
[1725782871687,15.7697,129.71,129.67,9.57753888]
[1725782871876,15.7697,129.71,129.68,20.0]
[1725782872490,15.7697,129.71,129.67,20.0]
[1725782872870,45.0,129.7,129.67,20.0]
[1725782875699,45.0,129.7,129.66,9.57753888]
[1725782876074,45.0,129.7,129.67,20.0]
[1725782880289,15.7697,129.75,129.68,9.57753888]
[1725782880596,15.7697,129.75,129.7,9.57753888]
[1725782880902,15.7697,129.75,129.71,20.0]
[1725782881695,15.7697,129.75,129.68,9.57753888]
[1725782881696,45.0,129.74,129.69,20.0]
[1725782882769,6.6324,129.73,129.61,12.96500266]
[1725782882971,15.7697,129.71,129.65,9.57753888]
[1725782883197,15.7697,129.71,129.66,20.0]
[1725782883400,45.0,129.7,129.66,20.0]
[1725782884200,45.0,129.7,129.64,24.03728458]
[1725782886604,45.0,129.7,129.65,20.0]
[1725782887498,45.0,129.7,129.63,20.0]
[1725782888092,6.6324,129.73,129.66,24.03728458]
[1725782888296,6.6324,129.73,129.67,20.0]
[1725782888297,45.0,129.72,129.67,20.0]
[1725782888502,6.6324,129.73,129.68,24.03728458]
[1725782888697,6.6324,129.73,129.69,20.0]
[1725782891592,6.6324,129.73,129.67,20.0]
[1725782892284,45.0,129.72,129.67,20.0]
[1725782896395,15.8935,129.71,129.66,24.03728458]
[1725782896590,45.0,129.7,129.6,12.6628]
[1725782896789,45.0,129.7,129.62,24.03728458]
[1725782898197,45.0,129.7,129.63,20.0]
[1725782898600,45.0,129.7,129.64,24.03728458]
[1725782898910,45.0,129.7,129.65,20.0]
[1725782899428,45.0,129.7,129.66,24.03728458]
[1725782899591,45.0,129.7,129.67,20.0]
[1725782902206,15.8935,129.71,129.68,24.03728458]
[1725782902410,15.8935,129.71,129.69,20.0]
[1725782904096,6.6324,129.73,129.69,20.0]
[1725782904698,45.0,129.72,129.69,20.0]
[1725782908497,15.8935,129.74,129.7,24.03728458]
[1725782908722,15.8935,129.74,129.71,20.0]
[1725782909897,45.0,129.73,129.71,20.0]
[1725782910305,45.0,129.73,129.69,20.0]
[1725782912424,15.8935,129.74,129.7,24.03728458]
[1725782912604,15.8935,129.74,129.71,20.0]
[1725782914296,16.5713,129.79,129.72,24.03728458]
[1725782914505,16.5713,129.79,129.73,20.0]
[1725782916606,16.5713,129.79,129.74,24.03728458]
[1725782916808,16.5713,129.79,129.75,20.0]
[1725782917910,45.0,129.78,129.75,20.0]
[1725782918218,16.5713,129.79,129.75,20.0]
[1725782920330,45.0,129.78,129.75,20.0]
[1725782920836,45.0,129.78,129.73,20.0]
[1725782922708,16.5713,129.79,129.73,20.0]
[1725782923212,16.5713,129.82,129.75,24.03728458]
[1725782923528,45.0,129.81,129.76,20.0]
[1725782927433,45.0,129.81,129.74,20.0]
[1725782927913,45.0,129.81,129.74,29.60242355]
[1725782929738,45.0,129.81,129.71,6.1246]
[1725782929739,68.18,129.81,129.71,6.1246]
[1725782930247,68.18,129.81,129.7,36.67455022]
[1725782930541,23.18,129.79,129.7,24.01175022]
[1725782930836,51.4555,129.78,129.7,24.01175022]
[1725782931214,74.6355,129.78,129.7,24.01175022]
[1725782931538,74.6355,129.78,129.68,30.60615022]
[1725782932328,39.3022,129.77,129.68,24.01175022]
[1725782932543,68.18,129.76,129.68,24.01175022]
[1725782934137,68.18,129.76,129.69,20.0]
[1725782941548,29.6355,129.74,129.64,1.54605611]
[1725782941722,45.0,129.73,129.63,12.6628]
[1725782942039,68.18,129.73,129.65,24.01175022]
[1725782943526,68.18,129.73,129.66,20.0]
[1725782945246,45.0,129.73,129.66,20.0]
[1725782945427,15.7392,129.72,129.66,20.0]
[1725782945628,45.0,129.71,129.66,20.0]
[1725782950150,45.0,129.71,129.64,29.61694975]
[1725782950151,6.0697,129.7,129.64,29.61694975]
[1725782950356,45.0,129.69,129.64,20.0]
[1725782951149,45.0,129.69,129.65,9.61694975]
[1725782951365,45.0,129.69,129.66,20.0]
[1725782955538,6.0697,129.7,129.66,20.0]
[1725782955845,6.0697,129.7,129.67,9.61694975]
[1725782956040,6.0697,129.7,129.68,20.0]
[1725782956749,45.0,129.69,129.61,20.0]
[1725782957056,45.0,129.69,129.67,9.61694975]
[1725782957256,6.0697,129.7,129.68,20.0]
[1725782957442,15.7392,129.72,129.68,20.0]
[1725782958952,45.0,129.71,129.68,20.0]
[1725782959357,45.0,129.71,129.65,9.61694975]
[1725782959556,45.0,129.71,129.66,20.0]
[1725782959860,68.18,129.71,129.6,12.6628]
[1725782960063,68.18,129.71,129.63,9.61694975]
[1725782960455,68.18,129.71,129.6,12.6628]
[1725782960640,38.9192,129.7,129.62,9.61694975]
[1725782960846,45.0,129.69,129.62,9.61694975]
[1725782961063,45.0,129.69,129.63,20.0]
[1725782962746,45.0,129.69,129.6,12.6628]
[1725782962951,6.0697,129.68,129.63,9.61694975]
[1725782963154,45.0,129.67,129.63,9.61694975]
[1725782964067,45.0,129.67,129.64,20.0]
[1725782965344,45.0,129.67,129.62,9.61694975]
[1725782965638,45.0,129.67,129.63,20.0]
[1725782966669,15.5445,129.66,129.59,0.5357424]
[1725782966872,45.0,129.65,129.59,10.15269215]
[1725782967965,6.0239,129.64,129.59,0.5357424]
[1725782968165,45.0,129.63,129.59,0.5357424]
[1725782969347,45.0,129.63,129.59,20.5357424]
[1725782971260,45.0,129.63,129.59,0.5357424]
[1725782971574,45.0,129.63,129.59,20.5357424]
[1725782973049,15.0865,129.62,129.59,20.5357424]
[1725782973254,15.0865,129.62,129.59,0.5357424]
[1725782973255,45.0,129.61,129.59,0.5357424]
[1725782974969,15.0865,129.62,129.59,10.15269215]
[1725782975268,15.0865,129.62,129.6,20.0]
[1725782979076,6.0239,129.64,129.6,20.0]
[1725782979377,15.0865,129.66,129.62,9.61694975]
[1725782979676,15.0865,129.66,129.64,9.61694975]
[1725782979880,15.0865,129.66,129.65,20.0]
[1725782982072,60.0865,129.66,129.65,20.0]
[1725782985871,60.0865,129.66,129.63,20.0]
[1725782986071,45.0,129.65,129.63,20.0]
[1725782988270,15.0865,129.66,129.63,20.0]
[1725782990285,45.0,129.65,129.63,20.0]
[1725782998983,45.0,129.65,129.59,0.5357424]
[1725782999188,45.0,129.65,129.6,9.61694975]
[1725783000506,45.0,129.65,129.61,20.0]
[1725783001499,45.0,129.65,129.62,9.61694975]
[1725783001693,45.0,129.65,129.63,20.0]
[1725783003897,51.2565,129.65,129.6,9.61694975]
[1725783004066,51.2565,129.65,129.61,20.0]
[1725783004485,51.2565,129.65,129.6,9.61694975]
[1725783005591,51.2565,129.65,129.59,0.5357424]
[1725783005786,51.2565,129.65,129.59,10.15269215]
[1725783005982,51.2565,129.65,129.6,20.0]
[1725783006198,15.0865,129.66,129.63,9.61694975]
[1725783006579,15.0865,129.66,129.64,20.0]
[1725783008782,15.0865,129.66,129.61,9.61694975]
[1725783008783,15.0865,129.66,129.62,20.0]
[1725783009275,45.0,129.65,129.62,20.0]
[1725783009989,45.0,129.65,129.63,9.61694975]
[1725783010184,45.0,129.65,129.64,20.0]
[1725783010390,15.0865,129.66,129.64,20.0]
[1725783012593,21.736,129.69,129.64,20.0]
[1725783012788,45.0,129.68,129.65,9.61694975]
[1725783012980,45.0,129.68,129.66,20.0]
[1725783018100,45.0,129.68,129.64,20.0]
[1725783024282,15.1372,129.69,129.65,9.61694975]
[1725783024482,15.1372,129.69,129.66,20.0]
[1725783028308,45.0,129.68,129.64,1.5465001]
[1725783028512,45.0,129.68,129.64,21.5465001]
[1725783029318,45.0,129.68,129.64,20.0]
[1725783029605,45.0,129.68,129.64,21.54658181]
[1725783031210,45.0,129.68,129.59,0.5357424]
[1725783031211,6.0811,129.67,129.6,1.54658181]
[1725783031431,45.0,129.66,129.61,1.54658181]
[1725783031706,45.0,129.66,129.59,10.15269215]
[1725783031903,45.0,129.66,129.6,1.54688161]
[1725783032090,45.0,129.66,129.61,1.54688161]
[1725783032403,45.0,129.66,129.59,10.15269215]
[1725783032588,45.0,129.66,129.6,21.54687353]
[1725783032997,45.0,129.66,129.61,1.54687353]
[1725783033310,45.0,129.66,129.61,11.16382328]
[1725783033482,45.0,129.66,129.62,21.54687353]
[1725783033794,45.0,129.66,129.62,20.0]
[1725783035008,45.0,129.66,129.62,21.54687353]
[1725783035205,45.0,129.66,129.62,20.0]
[1725783036209,15.0295,129.65,129.62,20.0]
[1725783036392,45.0,129.64,129.6,21.54687353]
[1725783037388,45.0,129.64,129.6,20.0]
[1725783037997,45.0,129.64,129.59,0.5357424]
[1725783038593,6.0811,129.63,129.59,0.5357424]
[1725783038789,45.0,129.62,129.59,0.5357424]
[1725783045604,45.0,129.62,129.59,20.5357424]
[1725783046518,6.0811,129.63,129.59,20.5357424]
[1725783046897,15.0295,129.65,129.6,9.61694975]
[1725783047097,15.0295,129.65,129.61,20.0]
[1725783047415,15.0295,129.65,129.62,9.61694975]
[1725783047611,15.0295,129.65,129.63,20.0]
[1725783050215,15.0295,129.65,129.63,9.61694975]
[1725783051120,6.3786,129.67,129.63,9.61694975]
[1725783051323,45.0,129.66,129.63,9.61694975]
[1725783054707,45.0,129.66,129.61,9.61694975]
[1725783055019,45.0,129.66,129.62,20.0]
[1725783060129,6.3786,129.67,129.62,20.0]
[1725783061626,45.0,129.66,129.62,20.0]
[1725783061824,45.0,129.66,129.59,0.5357424]
[1725783062007,45.0,129.66,129.6,9.61694975]
[1725783062204,45.0,129.66,129.61,20.0]
[1725783063516,68.18,129.66,129.59,0.5357424]
[1725783064007,45.0,129.66,129.59,0.5357424]
[1725783064426,68.18,129.66,129.59,0.5357424]
[1725783064930,68.18,129.66,129.59,20.5357424]
[1725783065102,6.3786,129.67,129.6,9.61694975]
[1725783065309,6.3786,129.67,129.62,9.61694975]
[1725783066034,6.3786,129.67,129.6,9.61694975]
[1725783066237,6.3786,129.67,129.61,20.0]
[1725783066417,45.0,129.66,129.61,20.0]
[1725783067911,68.18,129.66,129.61,20.0]
[1725783068309,68.18,129.66,129.59,20.5357424]
[1725783070335,15.5915,129.65,129.59,20.5357424]
[1725783070543,45.0,129.64,129.59,20.5357424]
[1725783072031,45.0,129.64,129.59,0.5357424]
[1725783072216,45.0,129.64,129.6,20.0]
[1725783073040,45.0,129.64,129.59,20.5357424]
[1725783076740,45.0,129.64,129.6,9.61694975]
[1725783076935,45.0,129.64,129.61,20.0]
[1725783077433,15.5915,129.65,129.62,9.61694975]
[1725783078133,15.5915,129.68,129.64,9.61694975]
[1725783078337,15.5915,129.68,129.65,20.0]
[1725783079137,6.3013,129.71,129.65,20.0]
[1725783079923,45.0,129.7,129.65,20.0]
[1725783080439,6.3013,129.71,129.66,9.61694975]
[1725783082729,45.0,129.7,129.66,9.61694975]
[1725783082918,15.5915,129.72,129.66,9.61694975]
[1725783083125,15.5915,129.72,129.68,9.61694975]
[1725783083332,15.5915,129.72,129.69,20.0]
[1725783084833,45.0,129.71,129.69,20.0]
[1725783085034,15.5915,129.72,129.69,20.0]
[1725783086927,15.5915,129.72,129.6,28.9635]
[1725783087129,45.0,129.71,129.67,9.61694975]
[1725783087338,45.0,129.71,129.68,20.0]
[1725783090144,45.0,129.71,129.65,9.61694975]
[1725783090348,45.0,129.71,129.66,20.0]
[1725783093128,45.0,129.71,129.67,9.61694975]
[1725783093325,45.0,129.71,129.68,20.0]
[1725783094546,45.0,129.71,129.67,9.61694975]
[1725783094749,45.0,129.71,129.68,20.0]
[1725783100151,15.5915,129.72,129.68,20.0]
[1725783100348,15.5915,129.72,129.69,9.61694975]
[1725783100545,22.6189,129.75,129.69,9.61694975]
[1725783100755,22.6189,129.75,129.7,20.0]
[1725783102845,45.0,129.74,129.7,20.0]
[1725783106367,45.0,129.74,129.71,9.61694975]
[1725783107046,16.3176,129.75,129.71,9.61694975]
[1725783107633,22.8015,129.78,129.72,20.0]
[1725783109061,45.0,129.77,129.72,20.0]
[1725783111547,45.0,129.77,129.73,9.61694975]
[1725783112054,45.0,129.77,129.74,20.0]
[1725783114942,45.0,129.77,129.73,9.61694975]
[1725783115145,45.0,129.77,129.74,20.0]
[1725783115542,22.5109,129.81,129.74,20.0]
[1725783115768,45.0,129.8,129.74,20.0]
[1725783117366,45.0,129.8,129.75,9.61694975]
[1725783117568,45.0,129.8,129.76,20.0]
[1725783121561,45.0,129.8,129.75,9.61694975]
[1725783121765,45.0,129.8,129.76,20.0]
[1725783124568,61.5101,129.8,129.7,19.071]
[1725783124766,84.7101,129.8,129.71,9.61694975]
[1725783124958,91.1425,129.8,129.71,9.61694975]
[1725783125265,67.9425,129.8,129.71,9.61694975]
[1725783125882,67.9425,129.8,129.72,20.0]
[1725783126370,91.1425,129.8,129.72,20.0]
[1725783127278,94.06472296,129.8,129.72,20.0]
[1725783134354,102.90996054,129.8,129.67,18.929]
[1725783134552,38.3249,129.79,129.7,9.61694975]
[1725783134779,45.0,129.78,129.7,9.61694975]
[1725783136174,45.0,129.78,129.71,20.0]
[1725783136374,21.2002,129.77,129.71,20.0]
[1725783136569,45.0,129.76,129.71,20.0]
[1725783140556,45.0,129.76,129.71,21.54164013]
[1725783141570,45.0,129.76,129.71,20.0]
[1725783144575,45.0,129.76,129.7,20.0]
[1725783145753,45.0,129.76,129.71,9.61694975]
[1725783145953,45.0,129.76,129.72,20.0]
[1725783149197,45.0,129.76,129.7,9.61694975]
[1725783149372,45.0,129.76,129.71,20.0]
[1725783150090,15.6506,129.75,129.64,18.929]
[1725783150288,45.0,129.74,129.66,9.61694975]
[1725783150593,45.0,129.74,129.68,9.61694975]
[1725783151524,45.0,129.74,129.69,20.0]
[1725783152694,45.0,129.74,129.65,20.0]
[1725783152981,6.552,129.73,129.66,9.61694975]
[1725783153288,45.0,129.72,129.67,20.0]
[1725783157916,16.3765,129.71,129.67,20.0]
[1725783158202,16.3765,129.71,129.66,9.61694975]
[1725783158389,16.3765,129.71,129.67,20.0]
[1725783158907,45.0,129.7,129.67,20.0]
[1725783159976,45.0,129.7,129.66,20.0]
[1725783167811,45.0,129.7,129.67,9.61694975]
[1725783172511,45.0,129.7,129.66,20.0]
[1725783174592,45.0,129.7,129.65,9.61694975]
[1725783174793,45.0,129.7,129.66,20.0]
[1725783180205,45.0,129.7,129.66,21.54621617]
[1725783181197,45.0,129.7,129.66,21.54620737]
[1725783186924,45.0,129.7,129.66,20.0]
[1725783187621,16.3765,129.71,129.69,9.61694975]
[1725783188015,16.3765,129.71,129.68,1.54618342]
[1725783188323,16.3765,129.71,129.68,9.61694975]
[1725783188502,16.3765,129.71,129.69,20.0]
[1725783190610,16.3765,129.71,129.69,21.54601598]
[1725783191323,16.3765,129.71,129.69,23.09199922]
[1725783193625,16.3765,129.71,129.69,21.54601598]
[1725783194006,16.3765,129.71,129.69,1.54601598]
[1725783194208,16.3765,129.71,129.69,21.54601598]
[1725783194428,45.0,129.7,129.69,1.54601598]
[1725783194604,16.3765,129.71,129.69,1.54601598]
[1725783194806,16.3765,129.71,129.69,3.09202262]
[1725783196832,16.3765,129.71,129.69,1.54601598]
[1725783197831,16.3765,129.71,129.68,20.0]
[1725783198334,16.3765,129.71,129.69,1.54599815]
[1725783198522,16.3765,129.71,129.68,20.0]
[1725783198818,16.3765,129.71,129.69,1.54603556]
[1725783199021,16.3765,129.71,129.68,20.0]